Workbook

Sheet ПОЧАТОК
B1: ПРО ЦЕЙ ШАБЛОН
B2: Відстежуйте початкові інвестиції у веб-сайт, вигоди від інвестування та витрати за допомогою цього шаблону планування бюджету веб-сайту.
B3: Введіть відомості в таблиці, щоб автоматично обчислити підсумки та значення за різними показниками оцінювання.
B4: Примітка.
B5: Додаткові вказівки наведено в стовпці A на аркуші "ПЛАНУВАННЯ БЮДЖЕТУ". Цей текст приховано навмисно. Щоб вилучити текст, виберіть стовпець A й натисніть клавішу Delete. Щоб відобразити текст, виберіть стовпець A та змініть колір шрифту.
B6: Щоб дізнатися більше про таблиці на цьому аркуші, натисніть клавіші Shift+F10 у таблиці, виберіть "Таблиця", а потім – "Текст заміщення".

Sheet Планування бюджету
B2: Quadrex Hardware
B3: ПЛАНУВАННЯ БЮДЖЕТУ ВЕБ-САЙТУ
B4: 2022-12-01
B6: Дані компанії | C6: Ставка
B7: Необхідна ставка прибутковості | C7: 10%
B8: Податкова ставка | C8: 30%
B10: Початкові інвестиції у веб-сайт | C10: Рік
B11: Апаратне забезпечення (наприклад, сервери) | C11: 25,000.00₴
B12: Програмне забезпечення (наприклад,програма електронної комерції) | C12: 15,000.00₴
B13: Розробка (наприклад, розробка та оформлення сайту сторонніми організаціями) | C13: 150,000.00₴
B14: Загальна сума початкових інвестицій | C14: =SUBTOTAL(109,ПочатковіІнвестиції[Рік]) -> 190,000.00₴
B16: Вигоди від веб-сайту | C16: Рік 1 | D16: Рік 2 | E16: Рік 3
B17: Прямі продажі | C17: 15,000.00₴ | D17: 50,000.00₴ | E17: 75,000.00₴
B18: Поступове збільшення збуту завдяки підвищенню ефективності рекламної кампанії та роботи продавців | C18: 25,000.00₴ | D18: 25,000.00₴ | E18: 25,000.00₴
B19: Поступове збільшення збуту завдяки підвищенню залучення партнерів | C19: 25,000.00₴ | D19: 25,000.00₴ | E19: 25,000.00₴
B20: Зменшення витрат на відрядження | C20: 25,000.00₴ | D20: 25,000.00₴ | E20: 25,000.00₴
B21: Зменшення витрат на обслуговування клієнтів | C21: 50,000.00₴ | D21: 50,000.00₴ | E21: 50,000.00₴
B22: Загальна вигода | C22: =SUBTOTAL(109,Переваги[Рік 1]) -> 140,000.00₴ | D22: =SUBTOTAL(109,Переваги[Рік 2]) -> 175,000.00₴ | E22: =SUBTOTAL(109,Переваги[Рік 3]) -> 200,000.00₴
B24: Витрати (без початкових капіталовкладень) | C24: РІК 1 | D24: РІК 2 | E24: РІК 3
B25: Собівартість продажів | C25: 7,500.00₴ | D25: 25,000.00₴ | E25: 37,500.00₴
B26: Обслуговування | C26: 15,000.00₴ | D26: 15,000.00₴ | E26: 15,000.00₴
B27: Керування проектами, служба підтримки клієнтів | C27: 35,000.00₴ | D27: 35,000.00₴ | E27: 35,000.00₴
B28: Онлайн-реклама, реєстрація в засобі пошуку | C28: 10,000.00₴ | D28: 10,000.00₴ | E28: 10,000.00₴
B29: Амортизація на капітальні витрати (за три роки) | C29: =ПочатковіІнвестиції[[#Totals],[Рік]]/3 -> 63,333.33₴ | D29: =ПочатковіІнвестиції[[#Totals],[Рік]]/3 -> 63,333.33₴ | E29: =ПочатковіІнвестиції[[#Totals],[Рік]]/3 -> 63,333.33₴
B30: Загальні витрати | C30: =SUBTOTAL(109,Витрати[РІК 1]) -> 130,833.33₴ | D30: =SUBTOTAL(109,Витрати[РІК 2]) -> 148,333.33₴ | E30: =SUBTOTAL(109,Витрати[РІК 3]) -> 160,833.33₴
B32: Підсумки | D32: Рік 1 | E32: Рік 2 | F32: Рік 3
B33: Чиста вигода (витрати) | D33: =Переваги[[#Totals],[Рік 1]]-Витрати[[#Totals],[РІК 1]] -> 9,166.67₴ | E33: =Переваги[[#Totals],[Рік 2]]-Витрати[[#Totals],[РІК 2]] -> 26,666.67₴ | F33: =Переваги[[#Totals],[Рік 3]]-Витрати[[#Totals],[РІК 3]] -> 39,166.67₴
B34: Податок | D34: =D33*ПодатковаСтавка -> 2,750.00₴ | E34: =E33*ПодатковаСтавка -> 8,000.00₴ | F34: =F33*ПодатковаСтавка -> 11,750.00₴
B35: Прибуток після податків | D35: =D33-D34 -> 6,416.67₴ | E35: 18,666.67₴ | F35: 27,416.67₴
B36: Повернута сума амортизації | D36: =C29 -> 63,333.33₴ | E36: =D29 -> 63,333.33₴ | F36: =E29 -> 63,333.33₴
B37: Рух грошових коштів | C37: =-ПочатковіІнвестиції[[#Totals],[Рік]] -> -190,000.00₴ | D37: =D35+D36 -> 69,750.00₴ | E37: 82,000.00₴ | F37: 90,750.00₴
B38: Накопичений рух грошових коштів | C38: =C37 -> -190,000.00₴ | D38: =C38+D37 -> -120,250.00₴ | E38: -38,250.00₴ | F38: 52,500.00₴
B40: Показники оцінювання | C40: Значення
B41: Чиста приведена вартість (NPV) | C41: =C37+(NPV(Рентабельність,D37:F37)) -> 9,359.50₴
B42: Внутрішня ставка прибутковості | C42: =IRR(C37:F37) -> 12.66%
B43: Період окупності | C43: =IF(F38<=0,"Більше трьох років",IF(E38<=0,(F37-F38)/F37+2,IF(D38<=0,(E37-E38)/E37+1,IF(C38<=0,(D37-D38)/D37,"Немає даних")))) -> 2.42
